bitfinex/quotes_BTCUSD_20260311
["timestamp","ask_amount","ask_price","bid_price","bid_amount"]
[1773218405250,0.07174939,69687.0,69675.0,0.07176175]
[1773218406405,0.07174939,69687.0,69678.0,7.5e-05]
[1773218407265,0.07167439,69687.0,69678.0,7.5e-05]
[1773218407700,0.0729489,69688.0,69678.0,7.5e-05]
[1773218408206,0.0012,69688.0,69679.0,0.04442716]
[1773218408560,0.07174859,69688.0,69679.0,0.04442716]
[1773218409429,0.07174859,69688.0,69679.0,0.11718451]
[1773218409614,0.07294836,69689.0,69679.0,0.11718451]
[1773218409833,0.07294836,69689.0,69679.0,0.11818451]
[1773218410423,0.07294836,69689.0,69679.0,0.002]
[1773218410621,0.07294836,69689.0,69678.0,7.5e-05]
[1773218410986,0.00022001,69687.0,69668.0,0.11461869]
[1773218411193,0.07175145,69685.0,69670.0,0.07184125]
[1773218411589,0.07197146,69687.0,69670.0,0.07184125]
[1773218411590,0.0012,69684.0,69671.0,0.04442716]
[1773218411996,0.00022001,69687.0,69671.0,0.04442716]
[1773218413124,0.00022001,69687.0,69671.0,0.04542716]
[1773218413333,0.00022001,69687.0,69672.0,0.07176484]
[1773218413487,0.00022001,69687.0,69673.0,0.04442716]
[1773218413690,0.00022001,69687.0,69675.0,0.04442716]
[1773218415309,0.00029501,69687.0,69675.0,0.04442716]
[1773218415512,0.00029501,69687.0,69677.0,0.03045369]
[1773218417723,0.00029501,69687.0,69679.0,0.03026933]
[1773218417918,0.00029501,69687.0,69680.0,0.0012]
[1773218418124,0.15849162,69686.0,69666.0,0.07177005]
[1773218418321,0.15849162,69686.0,69670.0,0.07168994]
[1773218418750,0.15849162,69686.0,69668.0,0.07296896]
[1773218418954,0.15849162,69686.0,69673.0,0.0002]
[1773218419155,0.15849162,69686.0,69667.0,0.07188116]
[1773218419455,0.15849162,69686.0,69667.0,0.00011184]
[1773218419456,0.14839862,69680.0,69667.0,0.00011184]
[1773218419671,0.07175866,69678.0,69667.0,0.00024064]
[1773218420555,0.07175866,69678.0,69666.0,0.0002]
[1773218420709,0.0718705,69678.0,69666.0,0.07197099]
[1773218421108,0.0718705,69678.0,69666.0,0.0002]
[1773218421751,0.0718705,69678.0,69661.0,0.000275]
[1773218421752,0.04948509,69676.0,69661.0,0.000275]
[1773218421911,0.04948509,69673.0,69661.0,0.07205073]
[1773218422547,0.0012,69672.0,69661.0,0.07205073]
[1773218422740,0.0719455,69678.0,69661.0,0.07205073]
[1773218422944,0.00018684,69678.0,69664.0,0.0319072]
[1773218423788,0.00018684,69678.0,69665.0,0.07177205]
[1773218423936,0.00018684,69678.0,69666.0,0.0319072]
[1773218424131,0.00018684,69678.0,69668.0,0.0319072]
[1773218425208,0.00018684,69678.0,69668.0,0.03175563]
[1773218425571,0.00018684,69678.0,69668.0,0.0326041]
[1773218425882,0.00018684,69678.0,69668.0,0.0316041]
[1773218426088,0.00018684,69678.0,69669.0,0.103369]
[1773218427112,0.00018684,69678.0,69670.0,0.02975275]
[1773218427318,0.00018684,69678.0,69670.0,0.02960124]
[1773218427516,0.00018684,69678.0,69670.0,0.02944974]
[1773218428198,0.00018684,69678.0,69672.0,0.02960124]
[1773218428620,0.0012,69680.0,69672.0,0.02960124]
[1773218428955,0.07174746,69689.0,69674.0,0.02949799]
[1773218429126,0.07174746,69689.0,69674.0,0.02960983]
[1773218429349,0.07174746,69689.0,69669.0,0.07196716]
[1773218429350,0.14968633,69685.0,69669.0,0.07196716]
[1773218429504,0.14979817,69685.0,69669.0,0.07196716]
[1773218430197,0.07192412,69684.0,69671.0,0.07176587]
[1773218430401,0.0012,69683.0,69671.0,0.07176587]
[1773218430603,0.0012,69682.0,69671.0,0.07176587]
[1773218430805,0.0012,69682.0,69672.0,0.02934714]
[1773218432144,0.0012,69682.0,69672.0,0.02919566]
[1773218432348,0.07175557,69681.0,69669.0,0.07196587]
[1773218432648,0.07175557,69681.0,69669.0,1e-08]
[1773218432649,0.00017164,69680.0,69669.0,1e-08]
[1773218433010,0.14858675,69680.0,69669.0,1e-08]
[1773218433356,0.00017164,69680.0,69669.0,1e-08]
[1773218433953,0.00017164,69680.0,69670.0,7.5e-05]
[1773218434117,0.00017164,69680.0,69669.0,1e-08]
[1773218436289,0.14858675,69680.0,69669.0,1e-08]
[1773218436421,0.07175763,69679.0,69669.0,1e-08]
[1773218437464,0.07275763,69679.0,69669.0,1e-08]
[1773218438075,0.07375763,69679.0,69669.0,1e-08]
[1773218438268,0.07275763,69679.0,69669.0,1e-08]
[1773218438678,0.07375763,69679.0,69669.0,1e-08]
[1773218439308,0.07275763,69679.0,69669.0,1e-08]
[1773218439660,0.00017164,69678.0,69669.0,1e-08]
[1773218440088,0.00024664,69678.0,69669.0,1e-08]
[1773218440680,0.07175969,69677.0,69669.0,1e-08]
[1773218440878,0.0012,69676.0,69669.0,1e-08]
[1773218441083,0.07175439,69683.0,69670.0,0.03044209]
[1773218441283,0.07186381,69685.0,69670.0,0.03044209]
[1773218441483,0.001,69678.0,69670.0,0.03044209]
[1773218441710,0.00011184,69685.0,69670.0,0.03044209]
[1773218442022,0.07175191,69685.0,69670.0,0.03044209]
[1773218442375,0.07204646,69687.0,69670.0,0.03044209]
[1773218442575,0.0012,69686.0,69670.0,0.03055393]
[1773218442820,0.001,69676.0,69674.0,0.03023449]
[1773218443027,0.07295122,69686.0,69674.0,0.03023449]
[1773218445017,0.07295122,69686.0,69675.0,0.07176175]
[1773218445218,0.07295122,69686.0,69676.0,0.03013948]
[1773218447355,0.07317123,69686.0,69677.0,0.07175969]
[1773218447958,0.07317123,69686.0,69678.0,0.03004012]
[1773218448335,0.07317123,69686.0,69672.0,0.03004012]
[1773218448545,0.04946421,69682.0,69672.0,0.03004012]
[1773218448746,0.07317123,69686.0,69672.0,0.03004012]
[1773218448981,0.07197123,69686.0,69672.0,0.03004012]
[1773218449204,0.0012,69685.0,69672.0,0.03004012]
[1773218449387,0.07175248,69684.0,69674.0,0.02990228]
[1773218454426,0.07295219,69685.0,69675.0,0.07176175]
[1773218454634,0.07204444,69687.0,69676.0,0.02954904]
[1773218455543,0.00029501,69696.0,69676.0,0.02954904]
[1773218455878,0.00022001,69684.0,69676.0,0.02954904]
[1773218456160,0.00022001,69684.0,69678.0,0.02954904]
[1773218457043,0.00022001,69684.0,69679.0,0.07175763]
[1773218457241,0.00022001,69684.0,69680.0,0.04764513]
[1773218459050,0.00022001,69691.0,69682.0,0.04758006]
[1773218460136,0.00142001,69691.0,69682.0,0.04758006]
[1773218460338,0.07316569,69691.0,69682.0,0.04758006]
[1773218461173,0.00142001,69691.0,69684.0,0.05155515]
[1773218461464,0.00022001,69691.0,69684.0,0.05155515]
[1773218462726,0.12165065,69700.0,69685.0,0.0012]
[1773218462929,0.0012,69699.0,69684.0,0.001]
[1773218463073,0.0012,69699.0,69680.0,0.07175645]
[1773218463074,0.07174218,69694.0,69680.0,0.07175645]
[1773218463274,0.04946421,69690.0,69680.0,0.07175645]
[1773218463473,0.04946421,69690.0,69684.0,0.001]
[1773218463804,0.0012,69693.0,69680.0,0.0717562]
[1773218464531,0.0012,69693.0,69687.0,7.5e-05]
[1773218465192,0.07294321,69693.0,69680.0,0.0698812]
[1773218466620,0.04946421,69690.0,69680.0,0.0698812]
[1773218467226,0.07174733,69689.0,69679.0,0.07175561]
[1773218467468,0.07174733,69689.0,69673.0,0.07176381]
[1773218467629,0.07174733,69689.0,69669.0,0.07176708]
[1773218467630,0.04948328,69683.0,69669.0,0.07176708]
[1773218467987,0.00011182,69683.0,69669.0,0.07176708]
[1773218468141,0.12123061,69690.0,69669.0,0.07176708]
[1773218468142,8.294e-05,69701.0,69676.0,0.04410071]
[1773218468328,8.294e-05,69701.0,69676.0,0.04421253]
[1773218468521,0.07181811,69701.0,69678.0,0.04410195]
[1773218468838,0.0012,69700.0,69678.0,0.04410195]
[1773218469245,0.0012,69700.0,69680.0,0.04948328]
[1773218469441,0.001,69689.0,69681.0,0.04410195]
[1773218470442,0.0012,69700.0,69681.0,0.04410195]
[1773218471299,0.0012,69700.0,69683.0,0.04486725]
[1773218471496,0.0012,69700.0,69682.0,0.07175454]
[1773218471497,0.00022001,69697.0,69685.0,0.04486725]
[1773218472693,7.5e-05,69687.0,69685.0,0.04479225]
[1773218473075,7.5e-05,69687.0,69685.0,0.04579225]
[1773218473273,7.5e-05,69687.0,69686.0,0.07175042]
[1773218473460,7.5e-05,69687.0,69686.0,0.11650105]
[1773218481051,7.5e-05,69696.0,69686.0,0.07175042]
[1773218481250,7.5e-05,69696.0,69687.0,0.04568115]
[1773218482174,0.00054461,69704.0,69691.0,0.04568115]
[1773218483170,0.00054461,69704.0,69692.0,0.07174424]
[1773218483581,0.00054461,69704.0,69694.0,0.07705658]
[1773218485284,0.00054461,69704.0,69695.0,0.07174115]
[1773218485486,0.00054461,69704.0,69694.0,0.14879821]
[1773218485692,0.00054461,69704.0,69695.0,0.0012]
[1773218486869,0.00054461,69704.0,69694.0,0.07174163]
[1773218488074,0.07195374,69703.0,69691.0,0.07174527]
[1773218488277,0.00022001,69703.0,69691.0,0.07174527]
[1773218488653,0.00022001,69703.0,69692.0,0.07705658]
[1773218489697,0.00022001,69703.0,69693.0,0.07174321]
[1773218490683,0.07195295,69703.0,69693.0,0.07174321]
[1773218490896,0.00022001,69703.0,69693.0,0.07174321]
[1773218491130,0.00022001,69703.0,69693.0,0.07128958]
[1773218491595,0.07195295,69703.0,69693.0,0.07128958]
[1773218491791,0.07195295,69703.0,69693.0,0.07113834]
[1773218491997,0.07195295,69703.0,69690.0,0.04948328]
[1773218491998,0.0719533,69703.0,69690.0,0.0012]
[1773218492243,0.0719533,69703.0,69688.0,0.07174757]
[1773218495172,0.0719533,69703.0,69692.0,0.00048]
[1773218495853,0.0719533,69703.0,69692.0,0.07222324]
[1773218496863,0.00022001,69703.0,69692.0,0.07207201]
[1773218497349,0.00022001,69703.0,69692.0,0.14912859]
[1773218497577,0.07195303,69703.0,69692.0,0.14912859]
[1773218498121,0.07315303,69703.0,69692.0,0.14912859]
[1773218498503,0.07315303,69703.0,69692.0,0.07207201]
[1773218500565,0.07315303,69703.0,69692.0,0.00017751]
[1773218500764,0.07315303,69703.0,69687.0,7.5e-05]
[1773218500765,0.04948328,69702.0,69687.0,7.5e-05]
[1773218500943,0.21649219,69703.0,69687.0,7.5e-05]
[1773218501101,0.14333916,69702.0,69687.0,7.5e-05]
[1773218501303,0.07315303,69703.0,69687.0,7.5e-05]
[1773218501551,0.07315303,69703.0,69687.0,0.07182388]
[1773218501775,0.07195303,69703.0,69690.0,0.04948328]
[1773218502066,0.00022001,69703.0,69691.0,0.07229778]
[1773218502216,0.14355917,69703.0,69691.0,0.07229778]
[1773218502413,0.07195327,69703.0,69691.0,0.07229778]
[1773218502817,0.07195327,69703.0,69693.0,0.07229778]
[1773218503418,0.00054461,69704.0,69693.0,0.07229778]
[1773218504047,0.00054461,69704.0,69692.0,0.07174424]
[1773218504048,0.00022001,69711.0,69695.0,0.07229778]
[1773218504243,0.00022001,69711.0,69692.0,0.07174424]
[1773218504244,0.07314639,69710.0,69701.0,0.07229778]
[1773218504446,0.00022001,69710.0,69701.0,0.07229778]
[1773218504643,1e-08,69717.0,69701.0,0.07229778]
[1773218504844,0.0001824,69724.0,69708.0,0.07229778]
[1773218504845,0.0013824,69724.0,69708.0,0.07229778]
[1773218505126,0.0001824,69724.0,69711.0,0.07229778]
[1773218505312,0.0001824,69724.0,69713.0,0.07229778]
[1773218505313,0.07189399,69724.0,69713.0,0.07229778]
[1773218505512,0.00044808,69722.0,69713.0,0.07229778]
[1773218506088,0.07216169,69722.0,69694.0,0.07174181]
[1773218506335,0.07216169,69722.0,69701.0,0.001]
[1773218506538,0.07216169,69722.0,69702.0,0.0012]
[1773218506693,0.07216169,69722.0,69703.0,0.07173292]
[1773218507832,0.04948328,69720.0,69703.0,0.07173292]
[1773218507986,0.1489453,69719.0,69703.0,0.07173292]
[1773218508409,0.1489453,69719.0,69701.0,0.07173425]
[1773218508780,0.07171749,69718.0,69703.0,0.07173292]
[1773218508976,0.0012,69717.0,69703.0,0.07173292]
[1773218509820,0.0012,69716.0,69703.0,0.07173292]
[1773218510035,0.0012,69715.0,69704.0,7.5e-05]
[1773218510680,0.0717216,69714.0,69704.0,7.5e-05]
[1773218510923,0.0717216,69714.0,69704.0,0.07237278]
[1773218511379,0.07292159,69715.0,69704.0,0.07237278]
[1773218511584,0.07170211,69733.0,69706.0,0.07229778]
[1773218511809,0.0012,69726.0,69712.0,0.07229778]
[1773218512003,0.07189407,69724.0,69712.0,0.07229778]
[1773218512648,0.0001824,69724.0,69714.0,0.07229778]
[1773218513262,0.0001824,69724.0,69715.0,0.14401835]
[1773218513813,0.07189382,69724.0,69715.0,0.14401835]
[1773218514965,0.0001824,69724.0,69715.0,0.14401835]
[1773218515173,0.07189413,69724.0,69715.0,0.14401835]
[1773218515344,0.00023,69725.0,69716.0,0.07229778]
[1773218515545,0.00034183,69725.0,69716.0,0.07229778]
[1773218516071,0.00022001,69722.0,69716.0,0.07229778]
[1773218516752,0.00032771,69722.0,69716.0,0.07229778]
[1773218517467,0.00032771,69722.0,69718.0,0.07229778]
[1773218517661,0.00034183,69725.0,69718.0,0.07229778]
[1773218518040,0.00034183,69725.0,69710.0,0.12120867]
[1773218518041,0.07205312,69725.0,69700.0,0.04948328]
[1773218518334,0.07205312,69725.0,69713.0,0.07299738]
[1773218519361,0.07205312,69725.0,69713.0,0.001275]
[1773218519566,0.04948328,69723.0,69708.0,0.07172686]
[1773218519763,0.0012,69724.0,69708.0,0.07172686]
[1773218520138,0.0012,69724.0,69708.0,0.10787575]
[1773218520694,0.07205312,69725.0,69709.0,0.03614889]
[1773218520900,0.0012,69724.0,69709.0,0.03614889]
[1773218521602,0.07171234,69723.0,69705.0,0.03614889]
[1773218521804,0.04948328,69720.0,69705.0,0.10907921]
[1773218522008,0.04948328,69720.0,69704.0,0.07300605]
[1773218522409,0.04948328,69720.0,69704.0,0.07180605]
[1773218522614,0.04948328,69720.0,69705.0,0.0012]
[1773218523407,7.5e-05,69722.0,69705.0,0.0012]
[1773218523762,7.5e-05,69722.0,69705.0,0.07292996]
[1773218523972,7.5e-05,69722.0,69705.0,0.10432004]
[1773218524508,7.5e-05,69722.0,69711.0,0.03139008]
[1773218525352,7.5e-05,69722.0,69711.0,0.03259008]
[1773218525576,7.5e-05,69722.0,69712.0,0.07172366]
[1773218525773,7.5e-05,69722.0,69713.0,0.03139008]
[1773218527989,7.5e-05,69722.0,69714.0,0.10311168]
[1773218528647,7.5e-05,69722.0,69714.0,0.03139008]
[1773218529778,7.5e-05,69722.0,69712.0,0.07292267]
[1773218530174,7.5e-05,69722.0,69712.0,0.07172267]
[1773218530414,7.5e-05,69722.0,69713.0,0.05604694]
[1773218532327,7.5e-05,69722.0,69714.0,0.0717216]
[1773218533130,0.00029501,69722.0,69714.0,0.12733359]
[1773218534298,0.07200857,69722.0,69714.0,0.12733359]
[1773218536083,0.07200857,69722.0,69695.0,0.05539863]
[1773218536290,0.0494058,69710.0,69698.0,0.0012]
[1773218536462,0.0494058,69710.0,69697.0,0.07173899]
[1773218536783,0.0494058,69710.0,69697.0,0.12813359]
[1773218537198,0.0494058,69710.0,69697.0,0.0563946]
[1773218537373,0.0494058,69710.0,69697.0,0.12813353]
[1773218537587,0.0494058,69710.0,69696.0,1e-08]
[1773218538160,0.07172674,69709.0,69696.0,1e-08]
[1773218538530,0.21497041,69709.0,69696.0,1e-08]
[1773218538662,0.14324367,69708.0,69696.0,1e-08]
[1773218538861,0.21497041,69709.0,69696.0,1e-08]
[1773218540711,7.5e-05,69704.0,69696.0,1e-08]
[1773218541089,0.0012,69703.0,69696.0,1e-08]
[1773218541905,0.0012802,69703.0,69696.0,1e-08]
[1773218542441,0.07173395,69702.0,69696.0,1e-08]
[1773218543240,8.02e-05,69703.0,69696.0,1e-08]
[1773218543241,0.07173043,69706.0,69697.0,0.05542581]
[1773218543451,0.07173043,69706.0,69697.0,0.05579889]
[1773218544739,0.07173043,69706.0,69698.0,0.07173806]
[1773218544946,0.07173043,69706.0,69698.0,0.12695972]
[1773218545368,0.0729294,69707.0,69699.0,0.05522166]
[1773218545572,0.0717294,69707.0,69699.0,0.05522166]
[1773218545772,0.07292833,69708.0,69699.0,0.05522166]
[1773218545966,0.07172833,69708.0,69699.0,0.05522166]
[1773218546173,0.07292833,69708.0,69699.0,0.05522166]
[1773218546551,0.07172833,69708.0,69699.0,0.05522166]
[1773218546757,0.07292813,69708.0,69700.0,0.12687439]
[1773218546943,0.07292813,69708.0,69700.0,0.05513838]
[1773218547146,0.07292813,69708.0,69697.0,0.07211199]
[1773218547550,0.07292813,69708.0,69697.0,0.00037308]
[1773218548708,0.07292813,69708.0,69697.0,0.07211217]
[1773218549570,0.07292813,69708.0,69697.0,0.12705079]
[1773218549773,0.07292813,69708.0,69697.0,0.0553117]
[1773218550067,0.00016,69703.0,69697.0,0.0553117]
[1773218551912,0.00016,69703.0,69696.0,7.501e-05]
[1773218552112,0.00016,69703.0,69696.0,0.00015521]
[1773218552550,0.00016,69703.0,69696.0,0.04200918]
[1773218553397,0.00016,69703.0,69696.0,0.11374832]
[1773218553727,0.00016,69703.0,69697.0,0.04185397]
[1773218553931,0.07292813,69708.0,69697.0,0.04185397]
[1773218555687,0.07292813,69708.0,69698.0,0.07173806]
[1773218555998,0.07292813,69708.0,69699.0,0.04537822]
[1773218558290,0.07292813,69708.0,69700.0,0.04532584]
[1773218560606,0.07292813,69708.0,69700.0,0.07173595]
[1773218560806,0.07194718,69709.0,69701.0,0.0452092]
[1773218561056,0.07172572,69710.0,69701.0,0.0452092]
[1773218561254,0.14300485,69712.0,69701.0,0.0464092]
[1773218561394,0.07179784,69713.0,69701.0,0.0464092]
[1773218562208,0.07179784,69713.0,69703.0,0.0452092]
[1773218562415,0.001,69708.0,69703.0,0.0452092]
[1773218562849,0.07179784,69713.0,69703.0,0.0452092]
[1773218564154,0.07179784,69713.0,69704.0,0.07173189]
[1773218564454,0.07179784,69713.0,69704.0,0.1162579]
[1773218564659,0.07201785,69713.0,69704.0,0.1162579]
[1773218565013,0.04962581,69720.0,69705.0,0.05193133]
[1773218565014,0.00022001,69720.0,69705.0,0.05193133]
[1773218565233,0.0012,69728.0,69711.0,0.05193133]
[1773218565460,0.0012,69728.0,69710.0,0.0494058]
[1773218565461,0.00022001,69727.0,69713.0,0.05193133]
[1773218565671,0.07192883,69727.0,69713.0,0.05193133]
[1773218566270,0.07194059,69725.0,69715.0,0.05193133]
[1773218566687,0.07193267,69723.0,69714.0,0.0717216]
[1773218567479,0.07193267,69723.0,69710.0,0.07172537]
[1773218567657,0.07193267,69723.0,69710.0,0.07292537]
[1773218569121,0.07193267,69723.0,69710.0,0.07172537]
[1773218570086,0.07193267,69723.0,69711.0,0.05150321]
[1773218570315,0.07193267,69723.0,69713.0,7.5e-05]
[1773218570514,0.0012,69722.0,69713.0,7.5e-05]
[1773218571715,0.07293267,69723.0,69713.0,7.5e-05]
[1773218571951,0.0012,69721.0,69713.0,7.5e-05]
[1773218572534,0.07171363,69722.0,69713.0,7.5e-05]
[1773218572837,0.0012,69721.0,69713.0,7.5e-05]
[1773218573276,0.07194059,69725.0,69715.0,0.05139428]
[1773218573277,0.00023,69725.0,69715.0,0.05139428]
[1773218573450,0.07192557,69730.0,69717.0,0.05139428]
[1773218573802,0.07192855,69727.0,69717.0,0.05139428]
[1773218573998,0.0012,69726.0,69705.0,0.07173025]
[1773218574259,0.0012,69726.0,69706.0,0.05139428]
[1773218574450,0.0012,69726.0,69707.0,0.0012]
[1773218574612,0.07171029,69725.0,69709.0,0.07172674]
[1773218574964,0.07208268,69726.0,69710.0,0.05133773]
[1773218575807,0.07208238,69726.0,69711.0,0.05133773]
[1773218576008,0.0012,69725.0,69711.0,0.05133773]
[1773218576540,0.07208238,69726.0,69711.0,0.05133773]
[1773218576715,7.5e-05,69722.0,69713.0,0.05129899]
[1773218578772,7.5e-05,69722.0,69715.0,0.0512444]
[1773218581007,7.5e-05,69722.0,69716.0,0.07171954]
[1773218581859,0.0003728,69726.0,69717.0,0.05118894]
[1773218582182,0.00022001,69723.0,69717.0,0.05118894]
[1773218583036,0.0003728,69726.0,69718.0,0.07171749]
[1773218583214,0.04009606,69734.0,69721.0,0.05113278]
[1773218583417,0.04020786,69734.0,69722.0,0.0012]
[1773218583716,0.04020786,69734.0,69723.0,0.05113278]
[1773218584441,0.07177113,69739.0,69725.0,0.05113278]
[1773218584442,7.5e-05,69739.0,69725.0,0.05113278]
[1773218584652,0.07182803,69745.0,69725.0,0.05113278]
[1773218584653,0.0012,69744.0,69730.0,0.05081322]
[1773218584852,0.0001381,69745.0,69730.0,0.05201322]
[1773218585028,0.0001381,69745.0,69732.0,0.05081322]
[1773218585642,0.0001381,69745.0,69736.0,0.05081322]
[1773218586412,0.0001381,69745.0,69736.0,0.05201322]
[1773218587186,6.98e-06,69745.0,69736.0,0.05201322]
[1773218587351,6.98e-06,69745.0,69738.0,0.05077864]
[1773218587744,6.98e-06,69745.0,69737.0,0.07169795]
[1773218587971,6.98e-06,69745.0,69735.0,0.0012]
[1773218588181,6.98e-06,69745.0,69734.0,0.05077864]
[1773218589315,6.98e-06,69745.0,69735.0,0.0717]
[1773218589722,6.98e-06,69745.0,69735.0,0.12246649]
[1773218590120,0.00100698,69745.0,69735.0,0.12246649]
[1773218590838,6.98e-06,69745.0,69735.0,0.12246649]
[1773218591265,6.98e-06,69745.0,69735.0,0.0717]
[1773218591463,6.98e-06,69745.0,69735.0,0.12121784]
[1773218591806,6.98e-06,69745.0,69735.0,0.0717]
[1773218592006,6.98e-06,69745.0,69735.0,0.12121784]
[1773218592244,6.98e-06,69745.0,69736.0,0.04951784]
[1773218593493,6.98e-06,69745.0,69737.0,0.07169795]
[1773218593793,6.98e-06,69745.0,69738.0,0.04942781]
[1773218594031,6.98e-06,69745.0,69736.0,0.07169811]
[1773218594193,6.98e-06,69745.0,69734.0,0.1211284]
[1773218594818,0.07296244,69748.0,69734.0,0.1211284]
[1773218594819,0.07296265,69748.0,69734.0,0.1211284]
[1773218595217,0.07296265,69748.0,69735.0,0.0717]
[1773218595458,0.07296219,69748.0,69736.0,0.04671252]
[1773218595637,0.07296219,69748.0,69737.0,0.07169795]
[1773218595815,0.07296219,69748.0,69737.0,0.11841047]
[1773218597021,0.07296219,69748.0,69736.0,0.07169816]
[1773218597220,0.13841456,69747.0,69734.0,0.0012]
[1773218597555,0.13841456,69747.0,69733.0,0.07170186]
[1773218598055,0.07168869,69746.0,69733.0,0.07170186]
[1773218598416,0.07288869,69746.0,69734.0,0.0466593]
[1773218599396,0.07288869,69746.0,69731.0,0.07177706]
[1773218599538,0.07288869,69746.0,69703.0,0.34465367]
[1773218599539,0.04937232,69740.0,69722.0,0.07178804]
[1773218599737,0.04947383,69740.0,69723.0,0.04660976]
[1773218600124,0.07169589,69739.0,69723.0,0.04660976]
[1773218600325,0.07169589,69739.0,69722.0,0.001275]
[1773218600326,0.04937232,69733.0,69722.0,0.001275]
[1773218600539,0.0012,69732.0,69719.0,0.0012]
[1773218600748,0.04937232,69730.0,69719.0,0.0012]
[1773218601153,0.0012,69732.0,69719.0,0.0012]
[1773218602170,0.07170617,69729.0,69717.0,0.04643621]
[1773218602503,0.07170617,69729.0,69716.0,0.0002]
[1773218603035,0.07170617,69729.0,69714.0,0.04643621]
[1773218603213,0.07170617,69729.0,69713.0,0.001275]
[1773218603419,0.07170617,69729.0,69714.0,0.04775781]
[1773218603801,0.07170617,69729.0,69714.0,0.04655781]
[1773218604218,0.07170617,69729.0,69714.0,0.11947898]
[1773218604546,0.07170617,69729.0,69714.0,0.04655781]
[1773218605280,0.07170617,69729.0,69713.0,0.001275]
[1773218605483,0.07170617,69729.0,69713.0,0.04778467]
[1773218605909,0.07170617,69729.0,69714.0,0.04650967]
[1773218607768,0.07170617,69729.0,69714.0,0.04670967]
[1773218608069,0.07170617,69729.0,69714.0,0.11843125]
[1773218608267,0.07170617,69730.0,69716.0,0.07171954]
[1773218608507,0.001,69729.0,69716.0,0.07171954]
[1773218608716,0.001,69729.0,69717.0,0.04640722]
[1773218609787,0.12107849,69730.0,69717.0,0.04640722]
[1773218610175,0.12207849,69730.0,69717.0,0.04640722]
[1773218610595,0.12107849,69730.0,69717.0,0.04640722]
[1773218610797,0.12207849,69730.0,69717.0,0.04640722]
[1773218611004,0.12207849,69730.0,69718.0,0.04635671]
[1773218611005,0.0012,69729.0,69718.0,0.04635671]
[1773218611447,0.12207849,69730.0,69718.0,0.04635671]
[1773218611631,0.0012,69729.0,69718.0,0.04635671]
[1773218612259,0.0012,69728.0,69718.0,0.04635671]
[1773218612482,0.10827849,69730.0,69718.0,0.04635671]
[1773218612662,0.0012,69728.0,69718.0,0.04635671]
[1773218613933,0.0022,69728.0,69718.0,0.04635671]
[1773218614349,0.0012,69728.0,69718.0,0.04635671]
[1773218614861,0.07170823,69727.0,69718.0,0.04635671]
[1773218616053,0.07170823,69727.0,69715.0,0.0012]
[1773218616446,0.04937232,69725.0,69714.0,0.0002]
[1773218616674,0.07171131,69724.0,69714.0,0.0002]
[1773218617822,0.07271131,69724.0,69718.0,0.0002]
[1773218618005,0.07271131,69724.0,69708.0,0.0012]
[1773218618208,0.07271131,69724.0,69708.0,0.07292768]
[1773218618951,0.07271131,69724.0,69710.0,0.04921446]
[1773218619208,0.07171131,69724.0,69710.0,0.04921446]
[1773218619624,0.07271131,69724.0,69710.0,0.05041446]
[1773218620659,0.07171131,69724.0,69710.0,0.05041446]
[1773218620839,7.5e-05,69722.0,69710.0,0.05041446]
[1773218622092,7.5e-05,69722.0,69712.0,0.04901585]
[1773218624050,7.5e-05,69722.0,69713.0,0.07172263]
[1773218624243,7.5e-05,69722.0,69714.0,0.04901456]
[1773218624451,7.5e-05,69722.0,69710.0,0.0014]
[1773218625793,7.5e-05,69722.0,69710.0,0.07312554]
[1773218625997,7.5e-05,69722.0,69711.0,0.04901287]
[1773218626201,7.5e-05,69722.0,69711.0,0.12073755]
[1773218626526,7.5e-05,69722.0,69712.0,0.04901287]
[1773218627108,7.5e-05,69722.0,69712.0,0.05021287]
[1773218628261,7.5e-05,69722.0,69713.0,0.04904035]
[1773218628969,0.001075,69722.0,69713.0,0.04904035]
[1773218629317,7.5e-05,69722.0,69713.0,0.04904035]
[1773218629744,7.5e-05,69722.0,69712.0,0.0012]
[1773218630641,0.001075,69722.0,69712.0,0.0012]
[1773218631590,7.5e-05,69722.0,69712.0,0.05023058]
[1773218632006,0.001075,69722.0,69712.0,0.05023058]
[1773218632427,7.5e-05,69722.0,69712.0,0.05023058]
[1773218632636,7.5e-05,69722.0,69712.0,0.1219542]
[1773218632861,0.001075,69722.0,69712.0,0.05023058]
[1773218633303,7.5e-05,69722.0,69712.0,0.05023058]
[1773218633736,7.5e-05,69722.0,69712.0,0.04903058]
[1773218634537,0.04944732,69722.0,69710.0,1e-08]
[1773218634890,7.5e-05,69722.0,69710.0,1e-08]
[1773218635091,7.5e-05,69722.0,69712.0,0.0002]
[1773218635395,0.00029501,69722.0,69713.0,0.03554716]
[1773218635806,0.00129501,69722.0,69713.0,0.03554716]
[1773218636215,0.00029501,69722.0,69713.0,0.03554716]
[1773218636662,0.0717144,69721.0,69713.0,0.03554716]
[1773218641468,0.0717144,69721.0,69712.0,0.0002]
[1773218642761,0.0737144,69721.0,69712.0,0.0002]
[1773218642958,0.0727144,69721.0,69712.0,0.0002]
[1773218643366,0.0737144,69721.0,69712.0,0.0002]
[1773218643606,0.0727144,69721.0,69712.0,0.0002]
[1773218643970,0.0717144,69721.0,69712.0,0.0002]
[1773218644376,0.0717144,69721.0,69713.0,0.0002]
[1773218644931,0.07200934,69722.0,69714.0,0.03485406]
[1773218645092,0.07171433,69722.0,69714.0,0.03485406]
[1773218645801,0.07271504,69721.0,69715.0,0.03485406]
[1773218645995,0.07171294,69723.0,69715.0,0.03485406]
[1773218646195,0.07171367,69722.0,69715.0,0.03485406]
[1773218647404,0.07171294,69723.0,69715.0,0.03485406]
[1773218650970,0.07291131,69725.0,69717.0,0.03499602]
[1773218651171,0.07171131,69724.0,69717.0,0.03499602]
[1773218652469,0.07171131,69725.0,69717.0,0.03499602]
[1773218652651,0.0717063,69729.0,69718.0,0.03498787]
[1773218652855,0.0001475,69734.0,69720.0,0.03498787]
[1773218653060,0.0001475,69734.0,69719.0,0.04940274]
[1773218653061,0.07184862,69734.0,69722.0,0.03498787]
[1773218654259,0.0001475,69734.0,69724.0,0.03498787]
[1773218656828,0.01808851,69733.0,69716.0,0.07171954]
[1773218657038,0.01808851,69733.0,69717.0,0.0012]
[1773218657378,0.01808851,69733.0,69717.0,0.02352981]
[1773218657824,0.01808851,69733.0,69717.0,0.02232981]
[1773218658126,0.07170309,69732.0,69718.0,0.07171749]
[1773218658693,0.07170309,69732.0,69719.0,0.02601765]
[1773218659583,0.07290309,69732.0,69719.0,0.02601765]
[1773218660006,0.0720706,69734.0,69721.0,0.02601765]
[1773218660204,0.0720706,69734.0,69723.0,0.02601765]
[1773218660417,0.0720706,69734.0,69725.0,0.02601765]
[1773218661815,7.5e-05,69731.0,69725.0,0.02601765]
[1773218662219,7.5e-05,69731.0,69724.0,0.0012]
[1773218662220,0.0002442,69731.0,69727.0,0.02630695]
[1773218669073,0.07194834,69731.0,69727.0,0.02630695]
[1773218669261,0.0002442,69731.0,69727.0,0.02630695]
[1773218669460,0.07192302,69734.0,69724.0,0.0012]
[1773218669461,0.07170206,69733.0,69724.0,0.0012]
[1773218669622,0.07170206,69733.0,69725.0,0.0012]